bitfinex/quotes_ETHUSD_20260208
["timestamp","ask_amount","ask_price","bid_price","bid_amount"]
[1770539876004,1.17947489,2119.6,2118.5,2.10660444]
[1770539877140,0.04083299,2119.6,2118.1,2.10660444]
[1770539877339,2.15718768,2119.6,2118.2,1.1801923]
[1770539877519,4.71787129,2119.8,2118.4,1.18009267]
[1770539877841,0.04083299,2119.6,2118.3,1.18018996]
[1770539878042,2.15718768,2119.6,2118.1,1.18027526]
[1770539878241,2.15718768,2119.6,2118.1,1.18026742]
[1770539878433,0.04083299,2119.3,2118.1,1.18026742]
[1770539878635,0.04083299,2119.3,2118.0,2.10660444]
[1770539878834,0.04083299,2119.3,2117.9,0.001]
[1770539879144,0.04083299,2119.0,2117.9,0.001]
[1770539879720,0.04083299,2118.7,2117.9,0.001]
[1770539879921,2.15718768,2118.7,2117.9,0.001]
[1770539880114,2.11635469,2118.7,2117.9,0.001]
[1770539880438,2.15718768,2119.0,2117.9,0.001]
[1770539880944,1.18002454,2118.6,2117.9,0.001]
[1770539881925,0.04083299,2118.4,2117.7,0.001]
[1770539882246,0.04083299,2118.4,2117.1,2.10660444]
[1770539882247,0.04083299,2118.4,2117.1,1.1808168]
[1770539882735,0.04083299,2118.4,2117.1,1.18086044]
[1770539882933,0.04083299,2118.4,2117.0,0.001]
[1770539882934,1.18035882,2118.0,2117.0,0.001]
[1770539883445,0.04083299,2117.8,2117.0,0.001]
[1770539883614,3.298,2117.7,2117.0,0.001]
[1770539883942,0.04083299,2117.4,2116.6,0.001]
[1770539884149,0.04083299,2117.1,2116.6,0.001]
[1770539884318,0.04083299,2117.1,2115.8,0.0008]
[1770539884319,0.04083299,2116.8,2116.1,0.0008]
[1770539884523,3.33883299,2116.8,2115.8,0.0008]
[1770539884717,3.298,2116.8,2115.8,0.0008]
[1770539884917,1.18108376,2116.7,2115.8,0.0008]
[1770539885151,1.22191675,2116.7,2115.8,0.0008]
[1770539885340,3.33827144,2116.7,2115.0,3.28859663]
[1770539885720,0.04083299,2116.1,2114.9,1.18208318]
[1770539885927,6.88163889,2116.6,2115.0,1.1820281]
[1770539886237,1.98911207,2116.5,2114.8,1.99688208]
[1770539886554,6.88163889,2115.7,2114.6,0.001]
[1770539886736,3.299,2115.6,2114.6,0.001]
[1770539886926,1.18175372,2115.5,2114.6,0.001]
[1770539889045,4.72701489,2115.6,2114.6,0.001]
[1770539889437,4.48069786,2115.7,2114.6,0.001]
[1770539889438,3.299,2115.7,2114.6,0.001]
[1770539889839,4.48065587,2115.7,2114.6,0.001]
[1770539890042,4.52148886,2115.7,2114.6,0.001]
[1770539890354,1.98911207,2115.6,2114.4,0.001]
[1770539891344,4.48065587,2115.7,2114.4,0.001]
[1770539892330,0.04083299,2115.6,2114.4,0.001]
[1770539892738,4.48065587,2115.7,2114.4,0.001]
[1770539896043,4.48065587,2115.7,2114.6,0.001]
[1770539896556,0.002,2115.5,2114.6,0.001]
[1770539899561,0.002,2115.5,2114.7,0.04083299]
[1770539899768,0.002,2115.5,2114.7,2.1511987]
[1770539900533,0.002,2115.5,2114.8,1.18214488]
[1770539901147,0.002,2115.5,2114.8,3.33334358]
[1770539901464,0.002,2115.5,2115.0,0.04083299]
[1770539901761,1.18122476,2116.5,2115.0,2.19203169]
[1770539901964,0.002,2116.4,2115.0,2.19203169]
[1770539902165,0.002,2116.4,2115.4,2.1511987]
[1770539902369,0.002,2116.3,2115.0,2.19203169]
[1770539902571,0.002,2116.4,2115.1,1.18197721]
[1770539902975,0.002,2116.4,2115.0,3.33320025]
[1770539903176,0.002,2116.4,2115.0,3.33321912]
[1770539903872,2.10500966,2116.2,2114.9,1.18208496]
[1770539904080,0.002,2116.4,2115.0,1.18203236]
[1770539904374,0.002,2116.4,2115.0,3.33323106]
[1770539905573,0.002,2116.4,2115.0,1.18203236]
[1770539906273,0.002,2116.4,2115.0,3.33323106]
[1770539908448,0.002,2116.4,2115.2,2.1521987]
[1770539908650,0.002,2116.2,2115.3,1.18186545]
[1770539908974,0.002,2116.2,2115.2,6.87966052]
[1770539908975,0.002,2116.2,2115.2,0.001]
[1770539909157,0.002,2116.1,2115.2,0.001]
[1770539909358,0.002,2116.1,2115.2,1.18291943]
[1770539909556,0.002,2116.1,2115.2,0.001]
[1770539910359,2.10500966,2116.0,2115.0,0.001]
[1770539910555,1.18158616,2115.8,2115.0,0.001]
[1770539911078,0.001,2115.7,2115.0,0.001]
[1770539911858,0.001,2115.6,2115.0,0.001]
[1770539912052,0.001,2115.7,2115.0,0.001]
[1770539912578,0.001,2115.6,2115.0,0.001]
[1770539912758,0.001,2115.7,2115.0,0.001]
[1770539913284,0.001,2115.6,2115.0,0.001]
[1770539913584,0.001,2115.7,2115.0,0.001]
[1770539913968,0.001,2115.6,2115.0,0.001]
[1770539914163,0.001,2115.7,2115.0,0.001]
[1770539914367,2.10500966,2115.6,2114.4,0.001]
[1770539914688,4.72634464,2116.0,2114.4,0.001]
[1770539914689,0.001,2116.2,2115.1,2.1511987]
[1770539915069,0.001,2116.2,2115.4,2.1511987]
[1770539915384,0.002,2116.4,2115.5,0.42565679]
[1770539915589,0.002,2116.4,2115.3,0.04083299]
[1770539915791,0.002,2116.4,2115.3,2.12084633]
[1770539915965,0.002,2116.4,2115.3,2.54650312]
[1770539916166,0.002,2116.4,2115.3,2.08001334]
[1770539916372,0.002,2116.4,2115.5,2.12084633]
[1770539916562,0.002,2116.4,2115.5,2.08001334]
[1770539916762,0.002,2116.4,2115.2,1.18192133]
[1770539916964,0.002,2116.4,2115.3,0.04083299]
[1770539917590,0.002,2116.4,2115.4,0.04083299]
[1770539917780,0.002,2116.4,2115.4,2.12084633]
[1770539918873,0.002,2116.4,2115.5,1.18175372]
[1770539919483,0.002,2116.4,2115.6,0.04083299]
[1770539920072,0.002,2116.4,2115.9,0.04083299]
[1770539920386,0.002,2116.4,2115.6,2.08001334]
[1770539920798,0.002,2116.4,2116.0,1.18147448]
[1770539921002,0.002,2116.6,2116.0,1.18147448]
[1770539921591,0.002,2116.2,2116.0,1.18147448]
[1770539921894,0.002,2116.6,2116.0,1.18147448]
[1770539921895,0.002,2116.6,2116.1,2.08001334]
[1770539922088,0.002,2117.3,2116.5,0.04083299]
[1770539922301,0.002,2117.3,2116.5,2.12084633]
[1770539922482,0.002,2117.3,2116.8,0.04083299]
[1770539922682,0.002,2117.3,2116.5,2.12084633]
[1770539922923,0.002,2117.3,2116.6,1.18113956]
[1770539923411,0.002,2117.3,2116.8,0.04083299]
[1770539923892,0.0008,2117.3,2116.8,2.12084633]
[1770539924095,0.0008,2117.3,2116.6,1.18113956]
[1770539924573,0.0008,2117.3,2116.6,3.2611529]
[1770539924769,0.0008,2117.3,2116.7,0.04083299]
[1770539925186,0.0008,2117.3,2116.8,1.18102796]
[1770539926913,0.0008,2117.3,2116.5,1.18117009]
[1770539931083,0.0008,2117.3,2116.6,0.04083299]
[1770539931685,0.0008,2117.3,2116.7,1.18108376]
[1770539933281,0.002,2117.1,2116.7,1.18108376]
[1770539933713,0.0008,2117.3,2116.7,1.18108376]
[1770539934007,1.18224737,2118.2,2116.9,0.04083299]
[1770539935880,0.002,2118.2,2117.0,1.18091639]
[1770539939087,0.002,2118.2,2117.1,2.08001334]
[1770539939289,0.002,2118.2,2117.4,2.08001334]
[1770539939497,0.002,2118.2,2117.2,0.04083299]
[1770539939682,0.002,2118.2,2117.2,2.12084633]
[1770539940207,0.002,2118.2,2117.5,2.12084633]
[1770539942013,0.002,2118.2,2117.8,0.04083299]
[1770539942192,0.002,2118.2,2117.9,1.18041456]
[1770539943906,1.17980179,2119.0,2117.9,3.2604279]
[1770539944216,0.002,2119.3,2118.2,2.08001334]
[1770539944397,1.18167537,2119.3,2118.3,3.301]
[1770539944911,1.18167537,2119.3,2118.3,2.12084633]
[1770539944912,1.18165977,2119.3,2118.3,2.12084633]
[1770539945093,1.18165977,2119.3,2118.4,3.3]
[1770539945297,1.18166607,2119.3,2118.4,3.3]
[1770539945614,0.002,2119.3,2118.5,2.08001334]
[1770539945823,0.002,2119.5,2119.0,2.14160478]
[1770539946116,1.17910751,2120.3,2119.3,0.04083299]
[1770539946117,1.17914017,2120.2,2119.3,0.04083299]
[1770539946320,1.18106489,2120.4,2119.4,1.17957912]
[1770539946484,0.002,2120.4,2119.4,1.17957912]
[1770539946687,0.002,2120.4,2119.6,0.04083299]
[1770539947183,3.3104223,2120.4,2119.3,1.17959271]
[1770539947618,0.002,2120.4,2119.4,2.10077179]
[1770539947788,0.002,2120.4,2119.6,0.04083299]
[1770539947989,1.18102759,2120.4,2119.6,3.34083299]
[1770539948303,0.002,2120.4,2119.6,3.3]
[1770539948617,0.002,2120.4,2119.6,4.52027613]
[1770539949692,0.002,2120.4,2119.6,4.47944314]
[1770539950006,0.002,2120.4,2119.3,0.04083299]
[1770539950206,2.13135138,2120.4,2119.3,1.17959266]
[1770539950419,0.04083299,2119.8,2118.5,2.10077179]
[1770539950718,0.04083299,2119.8,2117.2,4.72306258]
[1770539950719,9.62139284,2119.5,2117.9,1.18037172]
[1770539950890,2.12935138,2119.4,2117.9,1.18037172]
[1770539951093,2.12935138,2119.4,2117.9,1.1803767]
[1770539951499,2.12935138,2119.4,2118.0,1.1803577]
[1770539951719,2.12935138,2119.4,2117.9,1.18037359]
[1770539952339,2.12935138,2119.4,2117.8,4.7626671]
[1770539952340,2.12935138,2119.2,2117.8,1.18045843]
[1770539952625,2.12935138,2119.2,2117.9,1.18040067]
[1770539953098,2.12935138,2119.2,2117.8,1.18042786]
[1770539953296,2.12935138,2119.2,2117.6,1.18052747]
[1770539953523,2.12935138,2119.2,2117.7,1.1805208]
[1770539953703,2.12935138,2119.2,2117.6,4.72227835]
[1770539953900,2.12935138,2119.2,2117.8,1.18047021]
[1770539954098,2.12935138,2119.2,2117.5,0.04083299]
[1770539954414,2.01746675,2119.0,2117.5,4.76336472]
[1770539954616,2.01746675,2118.9,2117.4,2.448]
[1770539954824,2.01746675,2118.9,2117.4,3.62867826]
[1770539955130,2.01746675,2118.9,2117.7,1.1804969]
[1770539955424,1.17974611,2119.1,2117.8,1.22129974]
[1770539956427,4.71898447,2119.2,2117.8,1.22129974]
[1770539956609,4.71898447,2119.2,2118.1,0.04083299]
[1770539958224,1.1,2119.0,2117.7,1.18049364]
[1770539958528,1.17985747,2118.9,2117.8,0.04083299]
[1770539960317,3.19732422,2118.9,2117.6,1.18158179]
[1770539960528,3.19732422,2118.9,2117.6,0.001]
[1770539961655,2.01746675,2118.8,2117.6,0.001]
[1770539962720,3.19743559,2118.7,2117.6,0.001]
[1770539963008,2.01746675,2118.6,2117.6,0.001]
[1770539964837,1.18008024,2118.5,2117.6,0.001]
[1770539965432,3.19754699,2118.5,2117.6,0.001]
[1770539966022,3.299,2118.4,2117.6,0.001]
[1770539966951,1.18019166,2118.3,2117.6,0.001]
[1770539968140,0.9,2118.1,2117.6,0.001]
[1770539969125,1.17980179,2119.0,2117.7,2.1905739]
[1770539970213,1.17980179,2119.0,2117.7,2.14974091]
[1770539970408,2.01746675,2118.9,2117.6,0.001]
[1770539971346,1.17991315,2118.8,2117.6,0.001]
[1770539971846,3.1973799,2118.8,2117.6,0.001]
[1770539973514,2.01746675,2118.7,2117.6,0.001]
[1770539973718,2.01746675,2118.7,2117.8,0.001]
[1770539973913,1.17991315,2118.8,2117.8,0.001]
[1770539975556,6.73711938,2118.9,2117.8,0.001]
[1770539977249,1.98199168,2118.8,2117.8,0.001]
[1770539977627,1.17996884,2118.7,2117.8,0.001]
[1770539978024,3.16196052,2118.7,2117.8,0.001]
[1770539978220,1.98199168,2118.6,2117.8,0.001]
[1770539978547,1.98199168,2118.4,2117.6,0.001]
[1770539979752,1.18019166,2118.3,2117.6,0.001]
[1770539980247,1.98199168,2118.0,2116.9,0.001]
[1770539980448,1.18019166,2118.3,2116.9,2.05102215]
[1770539980662,3.3,2118.2,2117.1,2.05002215]
[1770539981259,5.28199168,2118.2,2117.0,1.18091148]
[1770539981559,5.28199168,2118.2,2117.0,3.23093363]
[1770539982374,1.1803031,2118.1,2117.0,3.23093363]
[1770539982552,1.98199168,2118.0,2116.9,0.001]
[1770539984341,1.98199168,2117.8,2116.9,0.001]
[1770539984530,5.28199168,2117.7,2116.9,0.001]
[1770539986658,1.98199168,2117.5,2116.9,0.001]
[1770539987364,1.98199168,2117.5,2117.1,0.001]
[1770539987659,1.98199168,2117.5,2116.9,0.001]
[1770539988057,1.18041456,2117.9,2116.9,2.05102215]
[1770539988556,1.18041456,2117.9,2116.9,0.001]
[1770539989143,3.16240624,2117.9,2116.9,0.001]
[1770539990762,1.98199168,2117.8,2116.9,0.001]
[1770539990955,1.98199168,2117.5,2116.6,0.001]
[1770539991154,3.3,2117.4,2116.6,0.001]
[1770539991867,5.28199168,2117.4,2116.6,0.001]
[1770539992260,5.28199168,2117.4,2116.3,5.0]
[1770539992261,8.91952018,2117.3,2116.3,5.0]
[1770539992439,8.91952018,2117.3,2116.0,0.001]
[1770539992440,6.9375285,2117.3,2116.0,0.001]
[1770539992645,1.98199168,2117.2,2116.0,0.001]
[1770539992878,1.98199168,2117.0,2116.0,0.001]
[1770539994159,2.02282467,2117.0,2116.0,0.001]
[1770539994355,1.98199168,2116.8,2116.0,0.001]
[1770539994574,1.98199168,2116.6,2116.0,0.001]
[1770539994778,1.98199168,2116.6,2115.8,0.001]
[1770539994779,1.18119536,2116.5,2115.8,0.001]
[1770539995280,3.16318704,2116.5,2115.8,0.001]
[1770539995847,2.02282467,2116.4,2115.5,0.001]
[1770539996764,3.16329867,2116.3,2115.5,0.001]
[1770539996976,2.02282467,2116.1,2115.3,0.001]
[1770539997288,5.28299168,2116.0,2115.3,0.001]
[1770539997796,0.04083299,2115.8,2115.2,0.001]
[1770539998155,1.98199168,2115.9,2115.2,0.001]
[1770539998452,1.98199168,2115.9,2114.6,0.001]
[1770539998655,6.89669551,2115.9,2114.6,0.001]
[1770539998986,1.18169786,2115.6,2114.6,0.001]
[1770540000580,4.72617293,2115.9,2115.5,0.001]
[1770540000784,4.72617293,2115.9,2114.8,2.05002215]
[1770540000959,4.72617293,2115.9,2114.6,0.001]
[1770540001149,6.70816461,2115.9,2114.6,1.18325497]
[1770540001348,0.04083299,2115.8,2114.6,0.001]
[1770540001588,0.04083299,2115.5,2114.6,0.001]
[1770540001783,3.302,2115.4,2114.6,0.001]
[1770540002394,0.04083299,2115.3,2114.6,0.001]
[1770540002962,3.20469012,2115.3,2114.4,0.001]
[1770540003289,2.02282467,2115.0,2114.1,0.001]
[1770540003488,0.04083299,2114.7,2114.0,0.0008]
[1770540003688,3.303,2114.6,2114.0,0.0008]
[1770540004874,1.1823126,2114.5,2114.0,0.0008]
[1770540005400,1.1823126,2114.5,2113.7,0.001]
[1770540005401,3.20513727,2114.5,2113.7,0.001]
[1770540005698,1.1823126,2114.5,2113.7,0.001]
[1770540006263,1.1823126,2114.5,2113.5,0.001]
[1770540006688,1.1823126,2114.5,2113.5,3.30788691]
[1770540007193,1.1823126,2114.5,2113.5,2.12502173]
[1770540007568,1.1823126,2114.5,2113.5,3.3078909]
[1770540007985,1.1823126,2114.5,2113.5,2.12502173]
[1770540008196,1.1823126,2114.5,2113.5,0.001]
[1770540008489,0.04083299,2114.4,2113.5,0.001]
[1770540009194,1.18242444,2114.3,2113.5,0.001]
[1770540011466,4.72969777,2114.5,2113.5,0.001]
[1770540011663,4.72969777,2114.5,2113.5,2.12502173]
[1770540012589,4.72969777,2114.5,2113.7,0.001]
[1770540012796,0.002,2114.3,2113.7,0.001]
[1770540013399,2.06400068,2114.2,2113.5,0.001]
[1770540013570,1.1825363,2114.1,2113.5,0.001]
[1770540013770,3.305,2114.0,2113.5,0.001]
[1770540014074,3.305,2114.0,2113.0,0.1386874]
[1770540014276,2.02316769,2113.8,2113.0,0.1386874]
[1770540014481,3.305,2114.0,2113.0,1.32183312]
[1770540014796,3.305,2114.0,2113.0,0.1386874]
[1770540015596,1.18276008,2113.7,2113.0,0.1386874]
[1770540016474,0.7,2113.5,2113.0,0.1386874]
[1770540017289,3.305,2113.4,2112.6,0.001]
[1770540017596,1.18298395,2113.3,2112.6,0.001]
[1770540017968,3.305,2113.4,2112.6,0.001]
[1770540018168,1.88287248,2113.5,2112.6,0.001]
[1770540018694,1.18287446,2113.5,2112.6,2.01788539]
[1770540018904,3.306,2113.9,2112.6,2.01788539]
[1770540019074,4.48867672,2113.9,2112.6,2.01788539]
[1770540019579,4.7317055,2114.3,2113.0,2.01688539]
[1770540019580,0.002,2114.3,2113.0,2.01688539]
[1770540019768,1.18446615,2114.3,2113.0,2.01688539]
[1770540019970,1.18446615,2114.3,2113.0,2.05771838]
[1770540020407,1.18446615,2114.3,2113.0,2.01688539]
[1770540021881,0.002,2114.3,2113.1,3.19998131]
[1770540022395,0.002,2114.3,2113.1,1.18309592]
[1770540022602,0.002,2114.3,2113.2,2.01688539]
[1770540023508,0.002,2114.3,2113.1,1.18309592]
[1770540023874,0.002,2114.3,2113.1,2.01688539]
[1770540024307,0.04283299,2114.3,2113.1,2.01688539]
[1770540024602,0.04283299,2114.3,2112.8,2.01688539]
[1770540024603,2.14147895,2114.3,2112.8,2.01688539]
[1770540025213,2.10064596,2114.3,2112.8,2.01688539]
[1770540025510,2.10064596,2114.3,2113.4,0.001]
[1770540025694,0.002,2114.3,2113.4,0.001]
[1770540026010,0.002,2114.3,2113.4,2.01788539]
[1770540027518,1.18186545,2115.3,2113.8,2.01688539]
[1770540027820,3.306,2115.2,2113.8,2.01688539]
[1770540028123,1.2228102,2115.1,2113.9,3.19953357]
[1770540028287,3.32145616,2115.1,2113.9,1.18264818]
[1770540028489,3.28062317,2115.1,2113.9,1.18264818]
[1770540028818,1.18186545,2115.3,2114.0,2.05771838]
[1770540028987,1.18186545,2115.3,2114.0,2.01688539]
[1770540030111,4.72940227,2115.4,2114.1,3.19942169]
[1770540030286,4.72940227,2115.4,2114.2,2.01688539]
[1770540030491,3.28245554,2115.4,2114.1,1.1825363]
[1770540031290,0.04083299,2115.2,2114.0,1.18258558]
[1770540031490,2.09864596,2115.3,2114.0,1.18258558]
[1770540031886,1.18380958,2115.4,2114.1,2.01688539]
[1770540032107,0.002,2115.4,2114.2,1.18248037]
[1770540032415,0.002,2115.4,2114.2,3.19936576]
[1770540032595,0.002,2115.4,2114.3,2.05771838]
[1770540033220,0.002,2115.4,2114.6,2.05771838]
[1770540033398,0.002,2115.4,2114.3,0.04083299]
[1770540033597,0.002,2115.4,2114.3,2.05771838]
[1770540034008,0.002,2115.4,2114.4,1.18236852]
[1770540034231,0.002,2115.4,2114.5,2.01688539]
[1770540034603,0.002,2115.4,2114.6,0.04083299]
[1770540034797,0.002,2115.4,2114.6,2.05771838]
[1770540036131,0.002,2115.4,2114.3,2.13112997]
[1770540036521,0.002,2115.4,2114.3,2.09029698]
[1770540037234,2.08224371,2115.4,2114.1,3.306]
[1770540037406,2.08224371,2115.4,2114.1,5.39629698]
[1770540037603,2.08224371,2115.4,2114.1,3.306]
[1770540037939,0.002,2115.2,2113.8,2.09029698]
[1770540038103,0.002,2115.2,2114.1,2.09029698]
[1770540038301,0.002,2115.2,2113.7,2.13112997]
[1770540038509,2.08224371,2115.2,2113.7,2.13112997]
[1770540038746,2.08224371,2115.2,2113.7,2.09029698]
[1770540039233,2.08024371,2115.0,2113.4,0.001]
[1770540040336,2.08024371,2114.8,2113.4,0.001]
[1770540040535,2.08024371,2114.6,2113.4,0.001]
[1770540041119,2.08024371,2114.6,2113.2,0.001]
[1770540042310,3.26255631,2114.5,2113.2,0.001]
[1770540042506,2.08024371,2114.4,2113.2,0.001]
[1770540043027,1.1823126,2114.5,2113.2,2.09129698]
[1770540043349,1.1823126,2114.5,2113.3,0.04083299]
[1770540044334,6.80949412,2114.6,2113.3,0.04083299]
[1770540044546,2.08024371,2114.5,2113.2,0.001]
[1770540046725,2.08024371,2114.1,2112.4,6.53378541]
[1770540046927,2.08024371,2113.9,2112.4,7.71725278]
[1770540047243,2.08024371,2113.9,2112.4,6.53378541]
[1770540047432,2.08024371,2113.9,2112.4,7.75807673]
[1770540047639,2.08024371,2113.9,2112.4,6.5746184]
[1770540047837,2.08024371,2113.9,2112.6,2.09129698]
[1770540048541,3.306,2114.0,2112.7,2.09029698]
[1770540048755,1.18264818,2113.9,2112.7,3.27361113]
[1770540048932,1.18264818,2113.9,2112.7,2.09029698]
[1770540049853,1.18264818,2113.9,2112.8,2.09029698]
[1770540050535,1.18264818,2113.9,2112.9,0.001]
[1770540052955,0.7,2113.7,2112.9,0.001]
[1770540054145,1.18281604,2113.6,2112.9,0.001]
[1770540054349,1.8827623,2113.7,2112.9,2.09129698]
[1770540055427,0.7,2113.7,2112.9,2.09129698]
[1770540055628,1.88276654,2113.7,2112.9,2.09129698]
[1770540055857,0.7,2113.7,2112.9,2.09129698]
[1770540056033,0.7,2113.7,2113.1,2.09029698]
[1770540056236,2.08024371,2113.8,2112.9,0.001]
[1770540056436,4.73068557,2113.9,2112.9,1.22504083]
[1770540056660,1.18248037,2114.2,2113.0,2.09029698]
[1770540058448,4.48843361,2114.3,2113.5,2.09029698]
[1770540058657,4.48843439,2114.3,2113.5,2.09029698]
[1770540058841,3.306,2114.3,2113.5,2.09029698]
[1770540059046,4.48842919,2114.3,2113.5,2.09029698]
[1770540059333,4.48845613,2114.3,2113.5,2.09029698]
[1770540059942,1.18225669,2114.6,2113.5,2.09029698]
[1770540060661,4.72973252,2114.7,2113.6,1.18281604]
[1770540060961,4.72973252,2114.7,2113.6,3.27311302]
[1770540061470,6.80997623,2114.7,2113.5,1.18284562]
[1770540061763,4.72973252,2114.7,2113.6,2.09029698]
[1770540062064,6.80997623,2114.7,2113.5,1.18284562]
[1770540062274,2.08024371,2114.6,2113.1,1.18405621]
[1770540062477,2.08224371,2114.4,2113.1,0.001]
[1770540062674,2.08024371,2114.2,2113.1,0.001]
[1770540062961,2.08024371,2114.0,2113.1,0.001]
[1770540063352,2.1210767,2114.0,2112.9,0.001]
[1770540063553,2.08024371,2113.6,2112.9,0.001]
[1770540064880,1.18270413,2113.8,2112.9,0.001]
[1770540066685,0.04083299,2113.6,2112.4,0.0008]
[1770540066864,0.04083299,2113.6,2112.1,0.001]
[1770540066865,2.11889127,2113.2,2112.1,0.001]
[1770540067183,0.04083299,2113.3,2112.1,0.001]
[1770540067184,2.15972426,2112.9,2112.1,0.001]
[1770540067552,2.11889127,2112.9,2112.1,0.001]
[1770540067784,3.306,2113.1,2112.1,0.001]
[1770540068280,2.11889127,2113.0,2112.1,0.001]
[1770540068659,4.77366464,2113.0,2112.1,0.001]
[1770540068856,2.11889127,2112.8,2112.1,0.001]
[1770540069953,1.18320791,2112.9,2112.1,0.001]
[1770540070384,1.18318088,2113.0,2112.1,0.001]
[1770540070882,3.307,2112.9,2112.1,0.001]
[1770540072270,3.307,2112.9,2112.1,2.06862026]
[1770540072982,4.49021906,2112.9,2112.1,1.18461544]
[1770540073181,3.307,2112.9,2112.1,1.18461544]
[1770540073384,1.18312678,2113.1,2112.1,3.34061593]
[1770540073764,1.18312678,2113.1,2112.1,1.18461544]
[1770540074171,4.49005498,2113.2,2112.1,1.18461544]
[1770540074598,4.49005498,2113.2,2112.1,3.34061593]
[1770540074763,4.49004264,2113.2,2112.1,3.34061593]
[1770540075183,4.49004264,2113.2,2112.1,1.18461544]
[1770540075389,4.49004264,2113.2,2112.3,0.001]
[1770540075574,0.002,2112.7,2112.3,0.001]
[1770540077669,3.308,2112.6,2112.3,0.001]
[1770540079596,1.18343195,2112.5,2112.3,0.001]
[1770540079771,1.18343195,2112.5,2112.1,0.001]
[1770540081867,8.04151445,2112.6,2112.1,0.001]
[1770540081868,3.308,2112.6,2112.1,0.001]
[1770540082373,4.49137741,2112.6,2112.1,0.001]
[1770540082577,3.308,2112.6,2112.1,0.001]
[1770540083097,0.002,2112.7,2112.1,0.001]
[1770540084696,0.002,2112.7,2112.1,0.59646806]
[1770540085191,0.002,2112.7,2112.3,0.04083299]
[1770540085402,3.308,2113.7,2112.3,0.64399384]
[1770540085711,1.18475143,2113.8,2112.3,0.64399384]
[1770540086012,0.002,2113.7,2112.7,1.18331992]
[1770540086169,0.002,2113.6,2112.7,1.18331992]
[1770540086371,0.002,2113.7,2112.7,1.18331992]
[1770540086800,0.002,2113.6,2112.7,1.18331992]
[1770540087283,0.002,2113.6,2112.8,0.61828316]
[1770540087598,0.002,2113.8,2112.8,0.61828316]
[1770540087599,0.002,2113.5,2112.8,0.61828316]
[1770540087806,0.002,2113.7,2112.8,0.61828316]
[1770540088097,0.002,2113.7,2112.9,1.18320791]
[1770540088278,0.002,2113.5,2112.9,1.18320791]
[1770540088895,0.004,2113.5,2112.9,1.18320791]
[1770540090480,0.002,2113.4,2112.9,1.18320791]
[1770540090873,0.002,2113.5,2112.3,0.001]
[1770540091074,0.002,2113.4,2112.7,1.18327954]
[1770540091405,0.002,2113.4,2112.8,1.18325036]
[1770540091800,0.002,2113.3,2112.8,1.18325036]
[1770540092102,0.002,2113.4,2112.8,1.18325036]
[1770540092495,0.002,2113.4,2112.7,4.73323804]
[1770540092675,0.002,2113.4,2112.7,1.18331992]
[1770540094697,0.002,2113.4,2112.4,4.73389023]
[1770540095299,2.21527993,2113.4,2112.4,4.73389023]
[1770540096285,0.7,2113.2,2112.4,4.73389023]
[1770540096808,0.002,2113.1,2112.4,1.18348797]
[1770540098785,0.002,2113.1,2112.3,4.73509078]
[1770540100117,0.002,2113.1,2112.6,0.001]
[1770540100317,3.39621402,2113.4,2112.6,0.001]
[1770540100519,0.002,2113.3,2112.6,0.001]
[1770540102190,2.261012,2113.3,2112.6,0.001]
[1770540102535,0.002,2113.3,2112.6,0.001]
[1770540102717,0.7,2113.1,2112.6,0.001]
[1770540103021,0.002,2113.3,2112.6,0.001]
[1770540103610,0.002,2113.3,2112.6,1.18437593]
[1770540104433,0.002,2113.3,2112.7,3.307]
[1770540105726,0.002,2113.3,2112.8,1.18326391]
[1770540108410,0.002,2113.3,2112.7,1.1832781]
[1770540110115,0.002,2113.5,2112.7,1.95283256]
[1770540110303,0.002,2113.4,2112.7,1.95283256]
[1770540111232,0.002,2113.4,2112.9,0.04083299]
[1770540111414,0.002,2113.5,2113.0,3.307]
[1770540111725,0.004,2113.5,2113.1,1.18309592]
[1770540111932,0.002,2113.7,2113.2,0.82172303]
[1770540112111,2.261812,2114.4,2113.2,0.82172303]
[1770540112112,0.0028,2114.4,2113.2,0.82172303]
[1770540112310,3.44418711,2114.4,2113.2,0.82172303]
[1770540112510,2.261812,2114.4,2113.2,0.82172303]
[1770540113407,0.0028,2114.4,2113.2,0.82172303]
[1770540113609,0.0028,2114.4,2113.5,0.83081732]
[1770540113915,0.0028,2114.4,2113.6,3.307]
[1770540114304,2.261812,2114.4,2113.6,3.307]
[1770540115433,0.002,2114.2,2113.6,3.307]
[1770540115638,0.002,2114.2,2113.7,1.18276008]
[1770540116136,0.002,2114.6,2113.7,1.18276008]
[1770540117734,0.002,2114.6,2113.8,0.85223216]
[1770540117925,0.002,2115.2,2114.1,0.85223216]
[1770540118123,0.002,2115.2,2114.2,3.306]
[1770540118636,0.002,2115.2,2114.2,4.12059223]
[1770540119013,0.002,2115.2,2114.4,0.04083299]
[1770540119331,0.002,2115.2,2114.7,0.04083299]
[1770540119506,0.002,2115.2,2114.8,3.306]
[1770540119716,0.002,2115.2,2114.9,1.18208898]
[1770540120215,0.0008,2116.0,2115.0,0.04083299]
[1770540120420,0.0008,2116.0,2115.0,2.18797472]
[1770540120618,0.0008,2116.0,2115.3,0.04083299]
[1770540121222,0.0008,2116.0,2115.0,2.18797472]
[1770540121223,2.259012,2115.9,2115.0,3.306]
[1770540121533,2.259012,2115.9,2114.8,1.18211326]
[1770540121708,2.259012,2115.7,2114.6,1.18225669]
[1770540123941,2.259012,2115.5,2114.6,1.18225669]
[1770540124314,2.259012,2115.5,2114.5,4.48727355]
[1770540124715,2.259012,2115.5,2114.5,1.18229474]
[1770540124940,2.259012,2115.5,2114.5,1.18227909]
[1770540125135,2.259012,2115.5,2114.4,1.18233607]
[1770540125634,2.259012,2115.5,2114.4,1.18236364]
[1770540125842,1.18180958,2115.4,2113.9,4.77141898]